Cogmind - Beta 12 @@@ ROGUE MODE // 2023.07.17 @ 12:09:54 Player: woons Result: Destroyed self with Mini Grenade Launcher Performance ------------- Evolutions (1) 500 Regions Visited (3) 600 Robots Destroyed (17) 85 Value Destroyed (332) 332 Prototype IDs (0) 0 Alien Tech Used (0) 0 Bonus (-254) -254 TOTAL SCORE: 1263 Bonus ------- Friendly Fire -254 Cogmind --------- Core Integrity 0/400 Matter 236/300 Energy 100/100 System Corruption 19% Temperature Cool (0) Movement Core (150) Ox2 Location -9/Materials Parts ------- > --- POWER (1) -------- (None) > --- PROPULSION (3) --- (None) > --- UTILITY (3) ------ Shield Generator > --- WEAPON (2) ------- Improved Light Cannon Mini Grenade Launcher > --- INVENTORY (5) ---- Light Ion Engine Cooling System Small Storage Unit High-capacity Matter Pod (48) Improved Light Cannon Peak State ------------ > --- POWER ------------ Light Ion Engine > --- PROPULSION ------- Improved Hover Unit Improved Hover Unit Airjet > --- UTILITY ---------- Small Storage Unit Seismic Detector Light Armor Plating > --- WEAPON ----------- Improved Light Cannon Improved Light Cannon > --- INVENTORY -------- Improved Hover Unit Cooling System High-capacity Matter Pod Shield Generator Hammer [Rating: 15] Favorites ----------- Power Light Ion Engine Engine Light Ion Engine Propulsion Improved Hover Unit Leg Aluminum Leg Wheel Wheel Hover Unit Improved Hover Unit Utility Small Storage Unit Device Seismic Detector Storage Small Storage Unit Protection Light Armor Plating Weapon Improved Light Cannon Ballistic Gun Assault Rifle Ballistic Cannon Improved Light Cannon Launcher Mini Grenade Launcher Impact Weapon Hammer Build | -11 -10 -10 -9 ------- Run | Jun Mat Min Mat Slots Evolved 2 | . . . 2 Power . | . . . . Propulsion 1 | . . . 1 Utility 1 | . . . 1 Weapon . | . . . . Parts Attached 26 | 1 8 5 12 Power 2 | . . 1 1 Engine 2 | . . 1 1 Core . | . . . . Reactor . | . . . . Propulsion 9 | . 5 1 3 Treads . | . . . . Leg . | . . . . Wheel 2 | . 2 . . Hover 7 | . 3 1 3 Flight . | . . . . Utility 5 | 1 . 1 3 Device 3 | 1 . 1 1 Storage 1 | . . . 1 Processor . | . . . . Hackware . | . . . . Protection 1 | . . . 1 Artifact . | . . . . Weapon 10 | . 3 2 5 Energy Gun . | . . . . Energy Cannon . | . . . . Ballistic Gun 1 | . 1 . . Ballistic Cannon 4 | . . 2 2 Launcher 1 | . . . 1 Special Weapon . | . . . . Impact Weapon 4 | . 2 . 2 Slashing Weapon . | . . . . Piercing Weapon . | . . . . Special Melee Weapon . | . . . . Unidentified Prototypes . | . . . . Corrupted Parts 1 | . . 1 . System Corruption 2 | . . 2 . Parts Lost 10 | . . 1 9 Power 2 | . . 1 1 Propulsion 4 | . . . 4 Utility 3 | . . . 3 Weapon 1 | . . . 1 Highest Loss Streak 5 | . . 1 5 To Critical Strikes . | . . . . Average Slot Usage (%) 83 | . 99 80 73 Engine 11 | . 14 9 9 Wheel 8 | . 24 . . Hover 14 | . . 28 20 Device 12 | . 14 12 10 Storage 11 | . 14 14 9 Protection 1 | . . . 3 Ballistic Gun 6 | . 17 . . Ballistic Cannon 10 | . . 15 16 Impact Weapon 5 | . 10 . 3 Naked Turns . | . . . . Heaviest Build 22 | 13 13 16 22 Greatest Support 26 | 20 26 15 22 Greatest Overweight (x) 4 | . 1 1 4 Average Overweight (x) . | . . . . Largest Inventory Capacity 8 | 8 8 8 8 Average Capacity 7 | 8 8 8 7 Most Carried 8 | 6 8 8 7 Average Carried 6 | 6 7 7 4 Final Capacity 8 | 8 8 8 5 Final Carried 8 | 6 8 8 5 Class Distribution -------------------- 100% | Mutant Dominant Class ---------------- Mutant | -10/Materials Mutant | -10/Mines Mutant | -9/Materials Resources | -11 -10 -10 -9 ----------- Run | Jun Mat Min Mat Matter Collected 780 | 228 174 146 232 Remotely . | . . . . Salvage Created 490 | 19 174 48 249 Parts 26 | 2 4 2 18 Haulers Intercepted 1 | . 1 . . Recyclers Shooed 1 | . . . 1 Parts Field Recycled . | . . . . Retrieved Matter . | . . . . Parts Self-Destructed . | . . . . Prevented . | . . . . Kills | -11 -10 -10 -9 ------- Run | Jun Mat Min Mat Combat Hostiles Destroyed 10 | . 1 . 9 Melee 1 | . . . 1 Guns 1 | . 1 . . Cannons 8 | . . . 8 Classes Destroyed 7 | 1 2 . 4 Tunneler 2 | 1 . 1 . Hauler 1 | . 1 . . Recycler 1 | . . . 1 Watcher 2 | . . . 2 Swarmer 4 | . . . 4 Grunt 5 | . 1 . 4 Sentry 1 | . . . 1 Thug 1 | . . 1 . Best Kill Streak 6 | 1 2 1 6 Combat Bots Only 5 | . 1 . 5 Max Kills in Single Turn 1 | 1 1 1 1 Gunslinging . | . . . . Exploded . | . . . . Melee 1 | . . . 1 Uniques/NPCs Destroyed . | . . . . Combat | -11 -10 -10 -9 -------- Run | Jun Mat Min Mat Damage Taken 1402 | . 219 59 1124 Core 523 | . 87 29 407 Absorbed by Shields 55 | . . . 55 Core Remaining (%) 76 | 100 . 53 . Volleys Fired 59 | 3 8 10 38 Largest 2 | 2 2 1 2 Hottest 78 | 40 40 39 78 Shots Fired 82 | 6 14 10 52 Gun 20 | 6 14 . . Cannon 61 | . . 10 51 Launcher 1 | . . . 1 Special . | . . . . Kinetic 81 | 6 14 10 51 Thermal . | . . . . Explosive 1 | . . . 1 Electromagnetic . | . . . . Robot Hit Streak 7 | 1 6 4 7 Robot Miss Streak 3 | 1 1 1 3 Penetration Max . | . . . . Secondary Targets . | . . . . Shots Hit Robots 55 | 3 12 7 33 Core Hits 20 | 1 4 3 12 Critical Kills . | . . . . Critical Parts Destroyed 1 | . . . 1 Critical Strikes 3 | . . 1 2 Blast 2 | . . 1 1 Smash 1 | . . . 1 Melee Attacks 53 | . 24 . 29 Impact 53 | . 24 . 29 Slashing . | . . . . Piercing . | . . . . Sneak Attacks . | . . . . Combat Hostiles . | . . . . Follow-up Attacks . | . . . . Damage Inflicted 1266 | 32 309 175 750 Guns 135 | 32 103 . . Cannons 769 | . . 175 594 Explosions . | . . . . Melee 335 | . 206 . 129 Ramming 27 | . . . 27 Kinetic 904 | 32 103 175 594 Thermal . | . . . . Explosive . | . . . . Electromagnetic . | . . . . Impact 335 | . 206 . 129 Slashing . | . . . . Piercing . | . . . . Highest Corruption 19 | . . 2 19 Average Corruption 11 | . . 2 16 Corruption Purged . | . . . . Corruption Blocked . | . . . . Effects 6 | . . . 6 Message Errors 1 | . . . 1 Matter Fused 1 | . . . 1 Parts Rejected 1 | . . . 1 Data Loss (minor) 2 | . . . 2 Weapon Failures 1 | . . . 1 Overload Shots . | . . . . Overflow Damage 120 | . 71 . 49 Projectiles 27 | . . . 27 Explosions . | . . . . Melee 93 | . 71 . 22 Knockbacks 8 | . . 3 5 Impact . | . . . . Kinetic 7 | . . 3 4 Secondary 1 | . . . 1 Self-Inflicted Damage 67 | . . . 67 Shots 1 | . . . 1 Rammed . | . . . . Targets Rammed . | . . . . Kicked . | . . . . Crushed . | . . . . Highest Temperature 135 | . 18 . 135 Average Temperature 53 | . 9 . 55 Received Heat Transfer 345 | . 156 . 189 Siege Activations . | . . . . Robots Corrupted . | . . . . Combat Hostiles . | . . . . Parts Fried 1 | . 1 . . Impact Corruptions 6 | . 5 . 1 Robots Melted . | . . . . Combat Hostiles . | . . . . Parts Melted . | . . . . Heat Transferred . | . . . . Parts Sabotaged . | . . . . Parts Stolen . | . . . . Parts Stripped . | . . . . Power Chain Reactions . | . . . . Missiles Intercepted . | . . . . Alert | -11 -10 -10 -9 ------- Run | Jun Mat Min Mat Peak Influence 255 | 5 125 48 255 Initial 48 | . 3 48 16 Average 85 | 1 46 44 134 Maximum Alert Level 1 | . . . 1 Low Security (%) 79 | 100 100 100 57 Level 1 20 | . . . 42 Level 2 . | . . . . Level 3 . | . . . . Level 4 . | . . . . Level 5 . | . . . . High Security . | . . . . Max Security . | . . . . Squads Dispatched 1 | . . . 1 Investigation 1 | . . . 1 Extermination . | . . . . Reinforcement . | . . . . Assault . | . . . . Garrison . | . . . . Intercept . | . . . . Searches Triggered . | . . . . Construction Impeded . | . . . . Haulers Reinforced . | . . . . Active Scanning Responses . | . . . . Cargo Convoy Interrupts . | . . . . Stealth | -11 -10 -10 -9 --------- Run | Jun Mat Min Mat Distress Signals 1 | . . . 1 Communications Jammed . | . . . . Distress Signals . | . . . . Times Spotted 20 | . 9 . 11 Peak Tracking Total 5 | . 4 . 5 Tactical Retreats 2 | . 1 . 1 Traps | -11 -10 -10 -9 ------- Run | Jun Mat Min Mat Traps Triggered 1 | . . 1 . Indirectly . | . . . . Trap Hack Attempts . | . . . . Triggered . | . . . . Disarmed . | . . . . Reprogrammed . | . . . . Reused . | . . . . Traps Extracted . | . . . . Installed . | . . . . Triggered . | . . . . Machines | -11 -10 -10 -9 ---------- Run | Jun Mat Min Mat Machines Disabled 1 | . . . 1 Max in Single Turn 1 | . . . 1 Machines Repaired . | . . . . Machines Sabotaged . | . . . . Overloaded Fab Kills . | . . . . Hacking | -11 -10 -10 -9 --------- Run | Jun Mat Min Mat Machines Accessed 5 | . 2 1 2 Terminals 3 | . 2 . 1 Fabricators . | . . . . Repair Stations . | . . . . Recycling Units . | . . . . Scanalyzers 1 | . . . 1 Garrison Access . | . . . . Total Hacks 8 | . 4 1 3 Successful 5 | . 2 1 2 Failed 3 | . 2 . 1 Catastrophic 1 | . 1 . . Database Lockouts . | . . . . Manual 5 | . 2 . 3 Terminals 6 | . 4 . 2 Fabricators . | . . . . Repair Stations . | . . . . Recycling Units . | . . . . Scanalyzers 1 | . . . 1 Garrison Access . | . . . . Terminal Hacks 2 | . 1 1 . Open Door 1 | . . 1 . Zone Layout 1 | . 1 . . Fabricator Hacks . | . . . . Repair Station Hacks . | . . . . Recycling Unit Hacks . | . . . . Scanalyzer . | . . . . Garrison Access Hacks . | . . . . Unauthorized Hacks 3 | . 1 . 2 Terminals 2 | . 1 . 1 Botnet 2 | . 1 . 1 Fabricators . | . . . . Repair Stations . | . . . . Recycling Units . | . . . . Scanalyzers 1 | . . . 1 Extract 1 | . . . 1 Garrison Access . | . . . . Data Cores Recovered . | . . . . Used . | . . . . Hacking Detections 3 | . 2 . 1 Full Trace Events . | . . . . Feedback Events . | . . . . Feedback Blocked . | . . . . Robot Schematics Acquired . | . . . . Robots Built . | . . . . Authchips . | . . . . Time . | . . . . Total Robot Build Rating . | . . . . Part Schematics Acquired 7 | . . . 7 Parts Built . | . . . . Authchips . | . . . . Time . | . . . . Total Part Build Rating . | . . . . Parts Repaired . | . . . . Time . | . . . . Parts Recycled . | . . . . Recycled Matter . | . . . . Retrieved Matter . | . . . . Retrieved Components . | . . . . Parts Scanalyzed . | . . . . Part Schematics Acquired . | . . . . Parts Damaged . | . . . . Bothacking | -11 -10 -10 -9 ------------ Run | Jun Mat Min Mat Used RIF Installer . | . . . . Robots Hacked . | . . . . Non-combat . | . . . . Combat . | . . . . Robot Hacks Applied . | . . . . Relay Couplers Released . | . . . . Fabnet Peak Effective % . | . . . . Robots Rewired . | . . . . Allies Hacked . | . . . . Hacks Repelled . | . . . . Allies | -11 -10 -10 -9 -------- Run | Jun Mat Min Mat Total Allies . | . . . . Largest Group . | . . . . Highest-Rated Group . | . . . . Highest-Rated Ally . | . . . . Total Orders . | . . . . Ally Attacks . | . . . . Total Damage . | . . . . Kills . | . . . . Allies Corrupted . | . . . . Allies Melted . | . . . . Intel | -11 -10 -10 -9 ------- Run | Jun Mat Min Mat Robot Analysis Total . | . . . . Derelict Logs Recovered 1 | . . 1 . Drone Launches . | . . . . Drone Recoveries . | . . . . Exploration | -11 -10 -10 -9 ------------- Run | Jun Mat Min Mat Turns Passed 963 | 55 319 130 459 Spaces Moved 622 | 38 195 173 216 Core 30 | . . . 30 Treads . | . . . . Legs 61 | 38 23 . . Wheels 162 | . 162 . . Hover 369 | . 10 173 186 Flight . | . . . . Fastest Speed 52 | 120 56 56 52 Average Speed 87 | 120 92 56 102 Slowest Speed 250 | 120 120 116 250 Overloaded Moves . | . . . . Propulsion Burnouts . | . . . . Robots Hopped . | . . . . Cave-ins Triggered 2 | . . . 2 Exploration Rate (%) 26 | 4 33 45 22 Regions Visited 3 Branch Regions 1 Pre-discovered Areas . | . . . . Known Exits Taken . | . . . . Unknown Exits Taken 3 | 1 1 1 . Scrap Searched 1 | . . 1 . Spaces Dug 29 | . 17 . 12 Terrain Destroyed 42 | . 17 1 24 Melee 28 | . 17 . 11 Projectile 6 | . . 1 5 AOE 8 | . . . 8 Terrain Rammed 7 | . . . 7 Walls Destroyed . | . . . . Machines Disabled . | . . . . Actions | -11 -10 -10 -9 --------- Run | Jun Mat Min Mat Total 866 | 41 284 196 345 Wait 66 | . 22 2 42 Move 619 | 37 194 172 216 Hop . | . . . . Pick Up 14 | . 12 2 . Fast Attach 10 | 1 4 2 3 Attach 8 | . 1 2 5 Detach 4 | . 2 1 1 Swap 8 | . 3 1 4 Drop 18 | . 14 4 . Fire 59 | 3 8 10 38 Melee 53 | . 24 . 29 Ram 7 | . . . 7 Kick . | . . . . Crush . | . . . . Escape Stasis . | . . . . Rewire . | . . . . Trap . | . . . . Miscellaneous . | . . . . Route ------- -11/Junkyard -10/Materials -10/Mines -9/Materials History --------- Turn | Location | Event 1 | -11/Junkyard | Discovered new exit (range 3) 56 | -11/Junkyard | Entered Materials 295 | -10/Materials | Discovered new exit (range 14) 323 | -10/Materials | Build established: Mutant 375 | -10/Materials | Entered Mines 439 | -10/Mines | Met a Derelict who couldn't figure out how to use a Trap Extractor 475 | -10/Mines | Discovered new exit (range 12) 482 | -10/Mines | Learned Materials emergency access door positions 505 | -10/Mines | Entered Materials 505 | -9/Materials | Evolved 2 slots: Propulsion x1, Utility x1 855 | -9/Materials | Crushed by falling debris 858 | -9/Materials | Core integrity fell below 50% 862 | -9/Materials | System corruption reached 10% 886 | -9/Materials | Crushed by falling debris 886 | -9/Materials | Core integrity fell below 20% 939 | -9/Materials | Lost 5 parts (1p2n1u1w) 964 | -9/Materials | Destroyed self with Mini Grenade Launcher Last Messages --------------- 00905_ K-01 Serf collects debris. 00906_ R-06 Scavenger collects Heat Sink. 00906_ Imp. Ion Engine destroyed. 00907_ Destroyed Terrain Scanner. 00908_ Imp. Hover Unit destroyed. 00908_ K-01 Serf collects debris. 00910_ System corrupted: Component data lost. 00911_ K-01 Serf collects debris. 00915_ R-06 Scavenger collects Aluminum Leg. 00919_ G-34 Mercenary destroyed. 00919_ K-01 Serf collects debris. 00920_ K-01 Serf cleans the Fusion Modulator. 00922_ K-01 Serf collects debris. 00925_ System corrupted: Component data lost. 00931_ Acquired 44 matter. 00932_ Acquired 16 matter. 00935_ Acquired 10 matter. 00951_ Acquired Mni. Grenade Launcher. 00962_ System corrupted: Matter fused (-7). 00964_ M-13 Machinist repairs Com. Wheel. Map ----- +----------------------------------------------------+ | ??????????????????????????##????????????????????# | | ??????????????????????????# ???????????????????#] | | ??????????????????????????# ???????########???# | | ??????????????????????????# ???????# #???# | | ??????????????????????????# """""??# "" #???# | | ??????????????????????????# """""#?# "T #???# | | ?????????????????#######??# """""#?# "" #???## | | ?????????????????# #??# """""#?# #????? | | ?????????????????# #??? """""#?# #????? | | ?????????????????# " #????? ???####+###????? | | ?????????????????# """ ########+####### #????? | | ?????????????????# """ # ###### | | ?????????????????# """ +^ | | ?????????????????# "" # ###### | | ?????????????????# """ # ######+####### #????? | | ?????????????????# "" # ## #?### ###????? | | ?????????????????# """ # ## "" #???# #??????? | | ?????????????????# " # ## """#???# #??????? | | ?????????????????# # ## R"#???# #??????? | | ?????????????????##"#### ## """ """#???# #??????? | | ??????????????????# #??# ## """ #???# #??????? | | ??????????????????###??# ## """ ! #???# #?????#! | | ??????????????????###??# ## #???? #?????#! | | ???????????# ########### #####+##+#####?? #?????#! | | ???????????#k T % # # # #?? ??????#! | | ???????????# rm @ + #?? ??????## | | ???????????# u###+ u# "" #?? ???????# | | ???????????# % ## #### # """#?? ???????? | | ???????????# ## #??# # S"#??????????? | | ???????????# ## #??? # #??????????? | | ???????????#% ## #??? ########??????????? | | ???????????# """ ## #??????????????????????? | | ???????????# """ ## #??????????????????????? | | ???????????# """ ## #??????????????????????? | | ???????????+ ? ######??????????????????????? | | ???????????#??? #???????????????????????????? | | ???????????????#######???????????????????????????? | | ?????????????????????????????????????????????????? | | ?????????????????????????????????????????????????? | | ?????????????????????????????????????????????????? | | ?????????????????????????????????????????????????? | | ?????????????????????????????????????????????????? | | ?????????????????????????????????????????????????? | | ?????????????????????????????????????????????????? | | ?????????????????????????????????????????????????? | | ?????????????????????????????????????????????????? | | ?????????????????????????????????????????????????? | | ?????????????????????????????????????????????????? | | ?????????????????????????????????????????????????? | | ?????????????????????????????????????????????????? | +----------------------------------------------------+ Best States ------------- Heat Dissipation 28 Energy Generation 12 Energy Capacity 265 Matter Stores 300 Matter Capacity 300 Sight Range 16 Terrain Scan Density 10 Armor Coverage 150 Evasion (%) 55 Item Schematics ----------------- Hover Unit | -9/Materials | Extracted EM Shotgun | -9/Materials | Extracted Imp. Hover Unit | -9/Materials | Extracted Welding Torch | -9/Materials | Extracted Lgt. Ion Engine | -9/Materials | Extracted Sml. Storage Unit | -9/Materials | Extracted Hpw. Tractor Beam | -9/Materials | Extracted Robot Schematics ------------------ None Fabricated ------------ Nothing Alien Tech Used ----------------- None Achievements -------------- Brute Force Part-time Excavator Challenges ------------ None Game ------ Seed DiametricCooledSuite Manual? 0 Play Time 00:14:22 Cumulative 26.3 hours Start 2023.07.17 @ 11:56:43 End 2023.07.17 @ 12:09:54 Sessions 1 Manual Loads 0 Difficulty Rogue Special Mode None Game No. 26 Rogue 25 Adventurer 1 Explorer 0 Win Type - Total 0 Types 0/0/0/0/0/0/0/0/0 Lore% 24 Gallery% 37 Achievement% 27 Wizard Run 0 Options --------- ASCII 0 Keyboard 0 Movement Mouse Keybinds 0 Fullscreen 2 Font 24/Proggy Map View 76x50 Tactical HUD 1 Map Filters NONE Filters NONE Steam 1 RUN: 61a3457e-6225-406e-8fe9-673a3f107802